Cogmind - Beta 17.1 @@@ ROGUE MODE // 2026.09.04 @ 14:47:48 Player: Godsword Result: Self-destructed Performance ------------- Evolutions (1) 500 Regions Visited (3) 600 Robots Destroyed (4) 20 Value Destroyed (70) 70 Prototype IDs (0) 0 Alien Tech Used (0) 0 Bonus (200) 200 TOTAL SCORE: 1390 Bonus ------- Pacifist 200 Cogmind --------- Core Integrity 211/400 Matter 159/300 Energy 22/100 System Corruption 11% Temperature Cool (6) Movement Core (50) Location -9/Materials Parts ------- > --- POWER (1) -------- (None) > --- PROPULSION (4) --- (None) > --- UTILITY (2) ------ Structural Scanner > --- WEAPON (2) ------- (None) > --- INVENTORY (5) ---- Deuterium Engine Improved Hover Unit Shock Rifle Plasma Cutter Peak State ------------ > --- POWER ------------ (None) > --- PROPULSION ------- (None) > --- UTILITY ---------- Improved Heat Sink Structural Scanner > --- WEAPON ----------- Shock Rifle > --- INVENTORY -------- Deuterium Engine Improved Hover Unit Shock Rifle Plasma Cutter [Rating: 8] Favorites ----------- Power None Propulsion Flight Unit Flight Unit Flight Unit Utility Structural Scanner Device Structural Scanner Weapon Heavy Assault Rifle Energy Gun Shock Rifle Ballistic Gun Heavy Assault Rifle Build | -11 -10 -10 -9 ------- Run | Yrd Mat Min Mat Slots Evolved 2 | . . . 2 Power . | . . . . Propulsion 2 | . . . 2 Utility . | . . . . Weapon . | . . . . Parts Attached 7 | . 2 . 5 Power . | . . . . Engine . | . . . . Core . | . . . . Reactor . | . . . . Propulsion 2 | . . . 2 Treads . | . . . . Leg . | . . . . Wheel . | . . . . Hover . | . . . . Flight 2 | . . . 2 Utility 2 | . 1 . 1 Device 2 | . 1 . 1 Storage . | . . . . Processor . | . . . . Hackware . | . . . . Protection . | . . . . Artifact . | . . . . Weapon 3 | . 1 . 2 Energy Gun 2 | . . . 2 Energy Cannon . | . . . . Ballistic Gun 1 | . 1 . . Ballistic Cannon . | . . . . Launcher . | . . . . Special Weapon . | . . . . Impact Weapon . | . . . . Slashing Weapon . | . . . . Piercing Weapon . | . . . . Special Melee Weapon . | . . . . Unidentified Prototypes . | . . . . Corrupted Parts 2 | . . . 2 System Corruption 11 | . . . 11 Parts Lost 4 | . . . 4 Power . | . . . . Propulsion 2 | . . . 2 Utility 1 | . . . 1 Weapon 1 | . . . 1 Highest Loss Streak 4 | . . . 4 To Critical Strikes . | . . . . Average Backups 1 | . . 1 3 Power . | . . . . Propulsion . | . . . . Utility . | . . . . Weapon . | . . . 1 Tool/Special . | . . . . Unused Backups 3 | . . . 3 Power 1 | . . . 1 Propulsion 1 | . . . 1 Utility . | . . . . Weapon . | . . . . Tool/Special 1 | . . . 1 Average Slot Usage (%) 15 | . 14 14 17 Device 13 | . 9 14 15 Ballistic Gun 1 | . 4 . . Peak Build Rating 8 | . 3 1 8 Average Rating 1 | . 1 1 3 On Entrance . | . . 1 1 Avg Prop Armor Cover (%) . | . . . . Naked Turns 5 | . 5 . . Heaviest Build 3 | . 3 1 2 Greatest Support 4 | 3 3 3 4 Greatest Overweight (x) . | . . . . Average Overweight (x) . | . . . . Largest Inventory Capacity 5 | 5 5 5 5 Average Capacity 5 | 5 5 5 5 Most Carried 5 | . 1 1 5 Average Carried 2 | . . 1 4 Final Capacity 5 | 5 5 5 5 Final Carried 4 | . 1 1 4 Class Distribution -------------------- 100% | Mutant Dominant Class ---------------- Mutant | -10/Materials Mutant | -10/Mines Mutant | -9/Materials Resources | -11 -10 -10 -9 ----------- Run | Yrd Mat Min Mat Matter Collected 109 | 100 . . 9 Remotely . | . . . . Salvage Created 53 | . . . 53 Parts 7 | . . . 7 Haulers Intercepted . | . . . . Recyclers Shooed . | . . . . Parts Field Recycled . | . . . . Retrieved Matter . | . . . . Parts Self-Destructed . | . . . . Prevented . | . . . . Parts Restored . | . . . . Kills | -11 -10 -10 -9 ------- Run | Yrd Mat Min Mat Combat Hostiles Destroyed 4 | . . . 4 Guns 1 | . . . 1 AOE 3 | . . . 3 Classes Destroyed 1 | . . . 1 Swarmer 4 | . . . 4 Best Kill Streak 4 | . . . 4 Combat Bots Only 4 | . . . 4 Max Kills in Single Turn 3 | . . . 3 Gunslinging . | . . . . Exploded 3 | . . . 3 Melee . | . . . . Uniques/NPCs Destroyed . | . . . . Combat | -11 -10 -10 -9 -------- Run | Yrd Mat Min Mat Hostile Shots Fired 39 | . . . 39 Missed 14 | . . . 14 Hits 25 | . . . 25 Projectile 25 | . . . 25 Damage Taken 368 | . 30 . 338 Core 219 | . 30 . 189 Absorbed by Shields . | . . . . Core Remaining (%) 94 | 100 . 88 . Volleys Fired 3 | . . . 3 Largest 1 | . . . 1 Hottest 50 | . . . 50 Shots Fired 3 | . . . 3 Gun 3 | . . . 3 Cannon . | . . . . Launcher . | . . . . Special . | . . . . Kinetic . | . . . . Thermal . | . . . . Explosive . | . . . . Electromagnetic 3 | . . . 3 Robot Hit Streak . | . . . . Robot Miss Streak . | . . . . Penetration Max . | . . . . Secondary Targets . | . . . . Shots Hit Robots . | . . . . Core Hits 4 | . . . 4 Critical Kills . | . . . . Critical Parts Destroyed . | . . . . Critical Strikes . | . . . . Melee Attacks . | . . . . Impact . | . . . . Slashing . | . . . . Piercing . | . . . . Sneak Attacks . | . . . . Combat Hostiles . | . . . . Follow-up Attacks . | . . . . Damage Inflicted 125 | . . . 125 Guns 30 | . . . 30 Cannons . | . . . . Explosions 95 | . . . 95 Melee . | . . . . Ramming . | . . . . Kinetic . | . . . . Thermal 95 | . . . 95 Explosive . | . . . . Electromagnetic 30 | . . . 30 Impact . | . . . . Slashing . | . . . . Piercing . | . . . . Highest Corruption 11 | . . . 11 Average Corruption 5 | . . . 5 Corruption Purged . | . . . . Corruption Blocked . | . . . . Overload Shots . | . . . . Overflow Damage 2 | . . . 2 Projectiles . | . . . . Explosions 2 | . . . 2 Melee . | . . . . Knockbacks . | . . . . Impact . | . . . . Kinetic . | . . . . Secondary . | . . . . Self-Inflicted Damage 51 | . . . 51 Shots 2 | . . . 2 Rammed . | . . . . Targets Rammed . | . . . . Kicked . | . . . . Crushed . | . . . . Highest Temperature 8 | . . . 8 Average Temperature 8 | . . . 8 Received Heat Transfer 129 | . . . 129 Siege Activations . | . . . . Martial Activations . | . . . . Shielding Activations . | . . . . Robots Disrupted . | . . . . Combat Hostiles . | . . . . Robots Corrupted . | . . . . Combat Hostiles . | . . . . Parts Fried . | . . . . Impact Corruptions . | . . . . Robots Melted . | . . . . Combat Hostiles . | . . . . Parts Melted . | . . . . Heat Transferred 50 | . . . 50 Parts Sabotaged . | . . . . Parts Stolen . | . . . . Parts Stripped . | . . . . Power Chain Reactions 1 | . . . 1 Alert | -11 -10 -10 -9 ------- Run | Yrd Mat Min Mat Maximum Alert Level . | . . . . Low Security (%) 100 | 100 100 100 100 Level 1 . | . . . . Level 2 . | . . . . Level 3 . | . . . . Level 4 . | . . . . Level 5 . | . . . . High Security . | . . . . Max Security . | . . . . Peak Influence 128 | . . . 128 Initial . | . . . . Average 9 | . . . 24 Influence Increases 138 | . . . 138 Destroy 0b10 Robot/C 80 | . . . 80 Destroy Leader 10 | . . . 10 Disable Machine 45 | . . . 45 Destroy Structure 3 | . . . 3 Influence Decreases 50 | . . . 50 Time Decay 10 | . . . 10 Lost Part 40 | . . . 40 Squads Dispatched . | . . . . Investigation . | . . . . Extermination . | . . . . Reinforcement . | . . . . Assault . | . . . . Garrison . | . . . . Intercept . | . . . . Searches Triggered . | . . . . Construction Impeded . | . . . . Haulers Reinforced . | . . . . Active Scanning Responses . | . . . . Cargo Convoy Interrupts . | . . . . Stealth | -11 -10 -10 -9 --------- Run | Yrd Mat Min Mat Distress Signals 1 | . 1 . . Communications Jammed . | . . . . Distress Signals . | . . . . Times Spotted 12 | . 2 1 9 Peak Tracking Total 9 | . 4 2 9 Tactical Retreats . | . . . . Traps | -11 -10 -10 -9 ------- Run | Yrd Mat Min Mat Traps Triggered 1 | . 1 . . Indirectly . | . . . . Trap Hack Attempts . | . . . . Triggered . | . . . . Disarmed . | . . . . Reprogrammed . | . . . . Reused . | . . . . Traps Extracted . | . . . . Installed . | . . . . Triggered . | . . . . Machines | -11 -10 -10 -9 ---------- Run | Yrd Mat Min Mat Machines Disabled 3 | . . . 3 Max in Single Turn 3 | . . . 3 Machines Repaired . | . . . . Machines Dismantled . | . . . . Machines Sabotaged . | . . . . Overloaded Fab Kills . | . . . . Hacking | -11 -10 -10 -9 --------- Run | Yrd Mat Min Mat Machines Accessed 1 | . . . 1 Terminals . | . . . . Fabricators . | . . . . Repair Stations . | . . . . Recycling Units . | . . . . Scanalyzers 1 | . . . 1 Garrison Access . | . . . . Total Hacks 2 | . . . 2 Successful 1 | . . . 1 Failed 1 | . . . 1 Catastrophic . | . . . . Database Lockouts . | . . . . Manual . | . . . . Terminals . | . . . . Fabricators . | . . . . Repair Stations . | . . . . Recycling Units . | . . . . Scanalyzers 2 | . . . 2 Garrison Access . | . . . . Terminal Hacks . | . . . . Fabricator Hacks . | . . . . Repair Station Hacks . | . . . . Recycling Unit Hacks . | . . . . Scanalyzer 1 | . . . 1 Retrieve Study 1 | . . . 1 Garrison Access Hacks . | . . . . Unauthorized Hacks . | . . . . Terminals . | . . . . Fabricators . | . . . . Repair Stations . | . . . . Recycling Units . | . . . . Scanalyzers . | . . . . Garrison Access . | . . . . Data Cores Recovered . | . . . . Used . | . . . . Hacking Detections 1 | . . . 1 Full Trace Events . | . . . . Feedback Events . | . . . . Feedback Blocked . | . . . . Robot Schematics Acquired . | . . . . Robots Built . | . . . . Authchips . | . . . . Time . | . . . . Total Robot Build Rating . | . . . . Part Schematics Acquired . | . . . . Parts Built . | . . . . Authchips . | . . . . Time . | . . . . Total Part Build Rating . | . . . . Part Studies Acquired 1 | . . . 1 Parts Repaired . | . . . . Time . | . . . . Parts Recycled . | . . . . Recycled Matter . | . . . . Retrieved Matter . | . . . . Retrieved Components . | . . . . Parts Scanalyzed . | . . . . Part Schematics Acquired . | . . . . Parts Damaged . | . . . . Bothacking | -11 -10 -10 -9 ------------ Run | Yrd Mat Min Mat Used RIF Installer . | . . . . Robots Hacked . | . . . . Non-combat . | . . . . Combat . | . . . . Robot Hacks Applied . | . . . . Relay Couplers Released . | . . . . Fabnet Peak Effective % . | . . . . Robots Rewired . | . . . . Allies Hacked . | . . . . Hacks Repelled . | . . . . Allies | -11 -10 -10 -9 -------- Run | Yrd Mat Min Mat Total Allies . | . . . . Largest Group . | . . . . Highest-Rated Group . | . . . . Highest-Rated Ally . | . . . . Total Orders . | . . . . Ally Attacks . | . . . . Total Damage . | . . . . Kills . | . . . . Allies Corrupted . | . . . . Allies Melted . | . . . . Intel | -11 -10 -10 -9 ------- Run | Yrd Mat Min Mat Active Infowar (turns) 139 | . 32 41 66 Structural 139 | . 32 41 66 Robot Analysis Total . | . . . . Derelict Logs Recovered . | . . . . Drone Launches . | . . . . Drone Recoveries . | . . . . Exploration | -11 -10 -10 -9 ------------- Run | Yrd Mat Min Mat Turns Passed 167 | 12 48 41 66 Spaces Moved 276 | 24 86 81 85 Core 274 | 24 86 81 83 Treads . | . . . . Legs . | . . . . Wheels . | . . . . Hover . | . . . . Flight 2 | . . . 2 Fastest Speed 40 | 50 50 50 40 Average Speed 49 | 50 50 50 49 Slowest Speed 50 | 50 50 50 50 Overloaded Moves . | . . . . Propulsion Burnouts . | . . . . Robots Hopped . | . . . . Potential Cave-ins . | . . . . Cave-ins Triggered . | . . . . Exploration Rate (%) 13 | 2 23 15 14 Regions Visited 3 Branch Regions 1 Pre-discovered Areas . | . . . . Known Exits Taken . | . . . . Unknown Exits Taken 3 | 1 1 1 . Scrap Searched . | . . . . Spaces Dug . | . . . . Terrain Destroyed 2 | . . . 2 Melee . | . . . . Projectile . | . . . . AOE 2 | . . . 2 Terrain Rammed . | . . . . Walls Destroyed . | . . . . Machines Disabled . | . . . . Actions | -11 -10 -10 -9 --------- Run | Yrd Mat Min Mat Total 296 | 23 89 80 104 Wait 6 | . . . 6 Move 273 | 23 85 80 85 Hop . | . . . . Pick Up 5 | . 1 . 4 Fast Attach 5 | . 2 . 3 Attach 2 | . . . 2 Detach 1 | . . . 1 Swap . | . . . . Drop 1 | . 1 . . Fire 3 | . . . 3 Melee . | . . . . Ram . | . . . . Kick . | . . . . Crush . | . . . . Escape Stasis . | . . . . Rewire . | . . . . Trap . | . . . . Miscellaneous . | . . . . Route ------- -11/Scrapyard -10/Materials -10/Mines -9/Materials History --------- Turn | Location | Event 5 | -11/Scrapyard | Discovered new exit (range 16) 13 | -11/Scrapyard | Entered Materials 58 | -10/Materials | Discovered new exit (range 6) 61 | -10/Materials | Entered Mines 98 | -10/Mines | Discovered new exit (range 9) 102 | -10/Mines | Entered Materials 102 | -9/Materials | Evolved 2 slots: Propulsion x2 167 | -9/Materials | System corruption reached 10% 168 | -9/Materials | Self-destructed Last Messages --------------- 00154_ S-10 Pest destroyed. 00154_ Terminal disabled. 00154_ Hadron Collector disabled. 00154_ S-10 Pest destroyed. 00154_ Neutrino Reactor explodes. 00154_ Shock Rifle destroyed. 00154_ Destroyed Shock Rifle. 00154_ Door malfunctions. 00157_ Acquired Corrupted Flight Unit. 00157_ Integrated Corrupted Flight Unit (+4). 00159_ U-05 Engineer repairs door. 00159_ Flight Unit destroyed. 00159_ Acquired 9 matter. 00161_ Imp. Heat Sink destroyed. 00163_ R-06 Scavenger collects Corrupted Lgt. Assault Rifle. 00166_ Acquired Corrupted Flight Unit. 00166_ Integrated Corrupted Flight Unit (+7). 00167_ U-05 Engineer lays Concrete. 00168_ Flight Unit destroyed. Map ----- +----------------------------------------------------+ | ?????## #### ##????????????????????????????????? | | ?????## #### ####??????????????????????????????? | | ????? ####+####??????????????????????????????? | | ?????? # ##??????????????????????????????? | | ?????? # "T" ##??????????????????????????????? | | ?????? # ##??????????????????????????????? | | ????? + ##??????????????????????????????? | | ??????? # * ##??????????????????????????????? | | ????????? # ####????????????????????????????? | | ????????? ######+####????????????????????????????? | | ????????? ## ## ??????????????????????????? | | ??????????## ### ??????????????????????????? | | ???????? ## """### ??????????????????????????? | | ????? ## """### ? ##??????????????????????? | | ??? ## """### ##??????????????????????? | | ?? ## ### ##??????????????????????? | | ?? ## ### ##??????????????????????? | | ###+####### ## ??????????????????? | | ^ ##+###??????????????????? | | ????????????????? | | """ #### ##?????????????????? | | # "T" #####u#####+##?????????????????? | | # # ##?????????????????? | | # """ # " ##?????????????????? | | # ! [ """ #g "" + ?????????????????? | | # !! """ /g %r@ " ##?????????????????? | | + == !! u #g b%[ ##?????????????????? | | # = ! #### # "####?????????????????? | | # #######T######+########"""####?????????????????? | | ? ########### #########???????????????????? | | ???????###### """ #########???????????????????? | | ???????????## """ ##??????????????????????????? | | ??????????? # """ ##??????????????????????????? | | ??????????? # ##??????????????????????????? | | ??????????? # """ ##??????????????????????????? | | ??????????? # """ ##??????????????????????????? | | ??????????? # ??? ##??????????????????????????? | | ??????????? # ????? ##??????????????????????????? | | ??????????? ##??????###??????????????????????????? | | ?????????????????????????????????????????????????? | | ?????????????????????????????????????????????????? | | ?????????????????????????????????????????????????? | | ?????????????????????????????????????????????????? | | ?????????????????????????????????????????????????? | | ?????????????????????????????????????????????????? | | ?????????????????????????????????????????????????? | | ?????????????????????????????????????????????????? | | ?????????????????????????????????????????????????? | | ?????????????????????????????????????????????????? | | ?????????????????????????????????????????????????? | +----------------------------------------------------+ Best States ------------- Heat Dissipation 42 Energy Generation 5 Energy Capacity 100 Matter Stores 200 Matter Capacity 300 Sight Range 16 Terrain Scan Density 10 Evasion (%) 50 Item Schematics ----------------- None Robot Schematics ------------------ None Fabricated ------------ Nothing Repaired ---------- Nothing Studied --------- Plasma Cutter | -9/Materials | Hacked Alien Tech Used ----------------- None Achievements -------------- None Challenges ------------ None Game ------ Seed FlightArmageddonCanceller Manual? 0 Play Time 00:04:01 Cumulative 53.1 hours Start 2026.09.04 @ 14:45:14 End 2026.09.04 @ 14:47:48 Sessions 1 Manual Loads 0 Difficulty Rogue Special Mode None Game No. 134 Rogue 134 Adventurer 0 Explorer 0 Win Type - Total 3 Types 3/0/0/0/0/0/0/0/0/0 Lore% 47 Gallery% 41 Achievement% 43 Wizard Run 0 Options --------- Layout 2 ASCII 0 Keyboard 0 Movement Mouse Keybinds 0 Fullscreen 1 Font 16/SmallcapsGlow Map View 50x49 Zoom Use 0% Tactical HUD 1 Map Filters NONE Filters NONE Steam SD RUN: 609e36fb-5d0c-4f48-9229-3dc67f3b8348